fUST/lending_fUST_20240902
["ID","MTS","AMOUNT","RATE_DAILY","PERIOD"]
[336984189,1725274289695,-3000.0,0.0009175,120]
[336984190,1725274289707,-100000.0,0.00092,120]
[336984191,1725274289716,-100000.0,0.00093,120]
[336984192,1725274289726,-100000.0,0.00094,120]
[336984193,1725274289735,-6089.84719908,0.0009488,60]
[336984194,1725274289745,-24476.59890492,0.000949,120]
[336984195,1725274289755,-100000.0,0.00095,120]
[336984196,1725274289765,-5498.25873428,0.00095,120]
[336984197,1725274289775,-272.435403,0.00095299,120]
[336984198,1725274289785,-3000.0,0.00095304,120]
[336984199,1725274289794,-100000.0,0.00096,120]
[336984200,1725274289804,-2517.43903828,0.000969,28]
[336984201,1725274289813,-100000.0,0.00097,120]
[336984202,1725274289822,-1059.1,0.00097,60]
[336984203,1725274289832,-1687.89,0.00097,60]
[336984204,1725274289841,-152.32070971,0.00097119,120]
[336984205,1725274289850,-6999.57773701,0.000975,30]
[336984206,1725274289860,-100000.0,0.00098,120]
[336984207,1725274289869,-3000.0,0.00098857,120]
[336984208,1725274289878,-100000.0,0.00099,120]
[336984209,1725274289888,-167.389999,0.00099,120]
[336984210,1725274289898,-411.25,0.00099007,120]
[336984211,1725274289908,-1000.0,0.00099999,120]
[336984212,1725274289917,-300.0,0.001,120]
[336984213,1725274289927,-1000.0,0.001,2]
[336984214,1725274289936,-6200.0,0.001,120]
[336984215,1725274289945,-2498.89558752,0.001,120]
[336984216,1725274289955,-301.54971469,0.001,120]
[336984217,1725274289965,-1123.90924288,0.001,120]
[336984218,1725274289974,-21895.33417133,0.001,120]
[336984219,1725274289984,-161.0,0.001,120]
[336984220,1725274289994,-500.0,0.001,120]
[336984221,1725274290005,-500.0,0.001,120]
[336984222,1725274290015,-200.0,0.001,120]
[336984223,1725274290026,-5030.0,0.001,120]
[336984224,1725274290050,-151.0,0.001,120]
[336984225,1725274290068,-151.0,0.001,120]
[336984226,1725274290088,-272.435403,0.00101254,120]
[336984227,1725274290109,-3000.0,0.00102411,120]
[336984228,1725274290129,-152.32070971,0.00104619,120]
[336984229,1725274290145,-3000.0,0.00105964,120]
[336984230,1725274290165,-272.435403,0.0010721,120]
[336984231,1725274290179,-3000.0,0.00109518,120]
[336984232,1725274290195,-5791.7,0.00109589,120]
[336984233,1725274290213,-152.32070971,0.00112119,120]
[336984234,1725274290232,-178.654999,0.00112438,120]
[336984235,1725274290244,-3000.0,0.00113071,120]
[336984236,1725274290260,-272.435403,0.00113165,120]
[336984237,1725274290276,-3000.0,0.00116625,120]
[336984238,1725274290292,-272.435403,0.0011912,120]
[336984239,1725274290306,-152.32070971,0.00119619,120]
[336984240,1725274290319,-200.0,0.0012,90]
[336984241,1725274290333,-3000.0,0.00120179,120]
[336984242,1725274290347,-638.60977079,0.00123214,120]
[336984243,1725274290361,-3000.0,0.00123732,120]
[336984244,1725274290375,-272.435403,0.00125076,120]
[336984245,1725274290389,-152.32070971,0.00127119,120]
[336984246,1725274290405,-3000.0,0.00127286,120]
[336984247,1725274290418,-3000.0,0.00130839,120]
[336984248,1725274290432,-272.435403,0.00131031,120]
[336984249,1725274290446,-3000.0,0.00134393,120]
[336984250,1725274290460,-152.32070971,0.00134619,120]
[336984251,1725274290475,-5791.7,0.00136986,120]
[336984252,1725274290489,-272.435403,0.00136986,120]
[336984253,1725274290502,-178.654999,0.00136986,120]
[336984254,1725274290517,-1725.75865853,0.00137946,120]
[336984255,1725274290531,-152.32070971,0.00142119,120]
[336984256,1725274290546,-24843.179999,0.001433,120]
[336984257,1725274290560,-100000.0,0.001444,120]
[336984258,1725274290574,-440.0,0.00147079,120]
[336984259,1725274290589,-152.32070971,0.00149619,120]
[336984260,1725274290603,-2498.89558752,0.0015,120]
[336984261,1725274290617,-279.50395389,0.0015,120]
[336984262,1725274290633,-201004.18477513,0.0015,120]
[336984263,1725274290648,-500.0,0.0015,120]
[336984264,1725274290661,-5032.0,0.0015,120]
[336984265,1725274290675,-440.0,0.00150342,120]
[336984266,1725274290690,-1000.0,0.00150684,7]
[336984267,1725274290705,-1000.0,0.00150684,7]
[336984268,1725274290719,-1000.0,0.00150684,7]
[336984269,1725274290733,-1000.0,0.00150684,7]
[336984270,1725274290747,-1000.0,0.00150684,7]
[336984271,1725274290761,-1000.0,0.00150684,7]
[336984272,1725274290776,-1000.0,0.00150684,7]
[336984273,1725274290790,-1000.0,0.00150684,7]
[336984274,1725274290804,-1000.0,0.00150684,7]
[336984275,1725274290818,-1000.0,0.00150684,7]
[336984276,1725274290832,-1000.0,0.00150684,7]
[336984277,1725274290847,-1000.0,0.00150684,7]
[336984278,1725274290862,-1000.0,0.00150684,7]
[336984279,1725274290877,-1000.0,0.00150684,7]
[336984280,1725274290892,-1000.0,0.00150684,7]
[336984281,1725274290907,-1000.0,0.00150684,7]
[336984282,1725274290922,-1099.79899475,0.00150684,7]
[336984283,1725274290938,-152.32070971,0.00157119,120]
[336984284,1725274290954,-5791.7,0.00164383,120]
[336984285,1725274290968,-152.32070971,0.00164619,120]
[336984286,1725274290983,-152.32070971,0.00172119,120]
[336984287,1725274290997,-152.32070971,0.00179619,120]
[336984288,1725274291013,-152.32070971,0.00187119,120]
[336984289,1725274291141,-5791.7,0.0019178,120]
[336984290,1725274291154,-1500.0,0.00192,120]
[336984291,1725274291163,-156.76484272,0.001925,120]
[336984292,1725274291174,-152.32070971,0.00194619,120]
[336984293,1725274291184,-3645.29172045,0.00195,120]
[336984294,1725274291193,-157.33123461,0.00197,120]
[336984295,1725274291203,-300.0,0.002,120]
[336984296,1725274291214,-1000.0,0.002,120]
[336984297,1725274291225,-171.42079787,0.002,120]
[336984298,1725274291236,-2498.89558752,0.002,120]
[336984299,1725274291248,-1000.0,0.002,120]
[336984300,1725274291260,-1000.0,0.002,120]
[336984301,1725274291270,-5000.0,0.002,120]
[336984302,1725274291280,-47129.15096,0.002,120]
[336984303,1725274291289,-200.0,0.002,120]
[336984304,1725274291299,-152.32070971,0.00202119,120]
[336984305,1725274291308,-152.32070971,0.00209619,120]
[336984306,1725274291317,-952.38095238,0.0021,120]
[336984307,1725274291327,-380.0,0.00213096,120]
[336984308,1725274291337,-380.0,0.00216359,120]
[336984309,1725274291348,-152.32070971,0.00217119,120]
[336984310,1725274291360,-5791.7,0.00219178,120]
[336984311,1725274291369,-638.60977079,0.0022143,120]
[336984312,1725274291379,-20642.03218902,0.00222222,120]
[336984313,1725274291388,-152.32070971,0.00224619,120]
[336984314,1725274291398,-869.56521739,0.0023,120]
[336984315,1725274291407,-152.32070971,0.00232119,120]
[336984316,1725274291416,-152.32070971,0.00239619,120]
[336984317,1725274291426,-833.33333333,0.0024,120]
[336984318,1725274291435,-5791.7,0.00246575,120]
[336984319,1725274291445,-152.32070971,0.00247119,120]
[336984320,1725274291454,-100000.0,0.0024888,120]
[336984321,1725274291464,-2498.89558752,0.0025,120]
[336984322,1725274291473,-800.0,0.0025,120]
[336984323,1725274291483,-500.0,0.0025,120]
[336984324,1725274291492,-5018.0,0.0025,120]
[336984325,1725274291502,-152.32070971,0.00254619,120]
[336984326,1725274291512,-152.32070971,0.00262119,120]
[336984327,1725274291528,-152.32070971,0.00269619,120]
[336984328,1725274291538,-740.74074074,0.0027,120]
[336984329,1725274291547,-722.82,0.00273972,120]
[336984330,1725274291557,-722.82,0.00273972,120]
[336984331,1725274291567,-722.82,0.00273972,120]
[336984332,1725274291576,-722.82,0.00273972,120]
[336984333,1725274291586,-722.82,0.00273972,120]
[336984334,1725274291596,-722.82,0.00273972,120]
[336984335,1725274291606,-722.82,0.00273972,120]
[336984336,1725274291616,-722.82,0.00273972,120]
[336984337,1725274291630,-722.82,0.00273972,120]
[336984338,1725274291640,-722.82,0.00273972,120]
[336984339,1725274291650,-722.82,0.00273972,120]
[336984340,1725274291660,-722.82,0.00273972,120]
[336984341,1725274291670,-722.82,0.00273972,120]
[336984342,1725274291680,-722.82,0.00273972,120]
[336984343,1725274291690,-722.82,0.00273972,120]
[336984344,1725274291702,-722.82,0.00273972,120]
[336984345,1725274291712,-722.82,0.00273972,120]
[336984346,1725274291722,-722.82,0.00273972,120]
[336984347,1725274291732,-722.82,0.00273972,120]
[336984348,1725274291741,-722.82,0.00273972,120]
[336984349,1725274291752,-722.82,0.00273972,120]
[336984350,1725274291761,-722.82,0.00273972,120]
[336984351,1725274291772,-722.82,0.00273972,120]
[336984352,1725274291783,-722.85534403,0.00273972,120]
[336984353,1725274291795,-5791.7,0.00273972,120]
[336984354,1725274291805,-152.32070971,0.00277119,120]
[336984355,1725274291817,-714.28571429,0.0028,120]
[336984356,1725274291827,-201.97074789,0.00281393,120]
[336984357,1725274291839,-152.32070971,0.00284619,120]
[336984358,1725274291849,-300.0,0.00284656,120]
[336984359,1725274291860,-277.70436963,0.002888,120]
[336984360,1725274291869,-10274.38185468,0.00289,120]
[336984361,1725274291879,-689.65517241,0.0029,120]
[336984362,1725274291888,-152.32070971,0.00292119,120]
[336984363,1725274291898,-152.32070971,0.00299619,120]
[336984364,1725274291907,-300.0,0.003,120]
[336984365,1725274291916,-2498.89558752,0.003,120]
[336984366,1725274291925,-666.66666667,0.003,120]
[336984367,1725274291935,-1000.0,0.003,120]
[336984368,1725274291945,-161.0,0.003,120]
[336984369,1725274291954,-500.0,0.003,120]
[336984370,1725274291963,-200.0,0.003,120]
[336984371,1725274291972,-2430.4238787,0.00301369,120]
[336984382,1725274435164,-300.0,0.00024656,2]
[336984383,1725274435190,-500.0,0.00024657,2]
[336984384,1725274435217,-580.34,0.00024657,2]
[336984385,1725274435244,-500.0,0.00024657,2]
[336984386,1725274435272,-500.0,0.00024657,2]
[336984387,1725274435299,-500.0,0.00024657,2]
[336984388,1725274435341,-500.0,0.00024657,2]
[336984389,1725274435369,-500.0,0.00024657,2]
[336984390,1725274435398,-500.0,0.00024657,2]
[336984391,1725274435425,-500.0,0.00024657,2]
[336984392,1725274435453,-559.99,0.00024657,2]
[336984393,1725274435481,-500.0,0.00024657,2]
[336984394,1725274435508,-366.98007961,0.00024657,2]
[336984395,1725274435536,-510.17,0.00024657,2]
[336984396,1725274435568,-500.0,0.00024657,2]
[336984397,1725274435596,-500.0,0.00024657,2]
[336984398,1725274435623,-500.0,0.00024657,2]
[336984399,1725274435651,-500.0,0.00024657,2]
[336984400,1725274435823,-500.0,0.00024657,2]
[336984401,1725274435854,-500.0,0.00024657,2]
[336984402,1725274435884,-500.0,0.00024657,2]
[336984403,1725274435911,-500.0,0.00024657,2]
[336984404,1725274435938,-500.0,0.00024657,2]
[336984405,1725274435970,-500.0,0.00024657,2]
[336984406,1725274435996,-500.0,0.00024657,2]
[336984407,1725274436023,-500.0,0.00024657,2]
[336984408,1725274436050,-500.0,0.00024657,2]
[336984409,1725274436080,-500.0,0.00024657,2]
[336984410,1725274436105,-500.0,0.00024657,2]
[336984411,1725274436134,-500.0,0.00024657,2]
[336984412,1725274436160,-500.0,0.00024657,2]
[336984413,1725274436186,-500.0,0.00024657,2]
[336984414,1725274436213,-500.0,0.00024657,2]
[336984415,1725274436240,-500.0,0.00024657,2]
[336984416,1725274436267,-500.0,0.00024657,2]
[336984417,1725274436293,-500.0,0.00024657,2]
[336984418,1725274436322,-500.0,0.00024657,2]
[336984419,1725274436350,-500.0,0.00024657,2]
[336984420,1725274436380,-1298.84,0.00024657,2]
[336984421,1725274436407,-1298.84,0.00024657,2]
[336984422,1725274436435,-1298.84,0.00024657,2]
[336984423,1725274436462,-1298.84,0.00024657,2]
[336984424,1725274436489,-672.9,0.00024657,2]
[336984425,1725274436515,-508.0090939,0.00024657,2]
[336984426,1725274436540,-501.87683757,0.00024657,2]
[336984427,1725274436567,-500.0,0.00024657,2]
[336984428,1725274436593,-500.0,0.00024657,2]
[336984429,1725274436621,-688.19,0.00024657,2]
[336984430,1725274436649,-1298.84,0.0002493,2]
[336984431,1725274436682,-1298.84,0.0002493,2]
[336984432,1725274436711,-1298.84,0.0002493,2]
[336984433,1725274436747,-1298.84,0.0002493,2]
[336984434,1725274436773,-500.0,0.00024931,2]
[336984435,1725274436800,-354.67,0.00024931,2]
[336984436,1725274436827,-500.0,0.00024931,2]
[336984437,1725274436855,-500.0,0.00024931,2]
[336984438,1725274436883,-500.0,0.00024931,2]
[336984439,1725274436920,-500.0,0.00024931,2]
[336984440,1725274436947,-500.0,0.00024931,2]
[336984441,1725274436974,-500.0,0.00024931,2]
[336984442,1725274437001,-500.0,0.00024931,2]
[336984443,1725274437028,-512.51,0.00024931,2]
[336984444,1725274437055,-500.0,0.00024931,2]
[336984445,1725274437083,-500.0,0.00024931,2]
[336984446,1725274437112,-672.9,0.00024931,2]
[336984447,1725274437143,-402.08,0.00024931,2]
[336984448,1725274437170,-688.19,0.00024931,2]
[336984449,1725274437198,-1298.84,0.00025203,2]
[336984450,1725274437227,-1298.84,0.00025204,2]
[336984451,1725274437255,-1298.84,0.00025204,2]
[336984452,1725274437283,-240.32,0.00025205,2]
[336984453,1725274437309,-187.22,0.00025205,2]
[336984454,1725274437334,-500.0,0.00025205,2]
[336984455,1725274437361,-424.52,0.00025205,2]
[336984456,1725274437521,-261.94,0.00025205,2]
[336984457,1725274437550,-331.1,0.00025205,2]
[336984458,1725274437579,-672.9,0.00025205,2]
[336984459,1725274437608,-688.19,0.00025205,2]
[336984460,1725274437638,-1298.84,0.00025219,2]
[336984461,1725274437670,-236.5710667,0.0002529,2]
[336984462,1725274437702,-1298.84,0.00025478,2]
[336984463,1725274437730,-1298.84,0.00025478,2]
[336984464,1725274437761,-1298.84,0.00025478,2]
[336984465,1725274437788,-356.53,0.00025479,2]
[336984466,1725274437815,-672.9,0.00025479,2]
[336984467,1725274437842,-688.19,0.00025479,2]
[336984468,1725274437872,-1298.84,0.00025751,2]
[336984469,1725274437900,-1298.84,0.00025752,2]
[336984470,1725274437927,-1298.84,0.00025752,2]
[336984471,1725274437954,-672.9,0.00025753,2]
[336984472,1725274437981,-688.19,0.00025753,2]
[336984473,1725274438009,-202.740487,0.00026001,2]
[336984474,1725274438036,-382.858588,0.00026001,2]
[336984475,1725274438065,-1298.84,0.00026026,2]
[336984476,1725274438091,-1298.84,0.00026026,2]
[336984477,1725274438118,-1298.84,0.00026026,2]
[336984478,1725274438144,-1298.84,0.00026026,2]
[336984479,1725274438170,-1298.84,0.00026026,2]
[336984480,1725274438196,-1299.07513824,0.00026026,2]
[336984481,1725274438228,-672.9,0.00026027,2]
[336984482,1725274438256,-688.19,0.00026027,2]
[336984483,1725274438283,-672.9,0.00026301,2]
[336984484,1725274438312,-688.19,0.00026301,2]
[336984485,1725274438340,-382.858588,0.00026326,2]
[336984486,1725274438366,-2500.0,0.00026566,2]
[336984487,1725274438392,-2500.0,0.00026575,2]
[336984488,1725274438419,-672.9,0.00026575,2]
[336984489,1725274438446,-688.19,0.00026575,2]
[336984490,1725274438472,-382.858588,0.00026651,2]
[336984491,1725274438498,-150.114,0.00026724,2]
[336984492,1725274438525,-672.9,0.00026849,2]
[336984493,1725274438552,-688.19,0.00026849,2]
[336984494,1725274438579,-382.858588,0.00026976,2]
[336984495,1725274438606,-287.0,0.00027122,2]
[336984496,1725274438633,-672.9,0.00027123,2]
[336984497,1725274438664,-688.19,0.00027123,2]
[336984498,1725274438691,-382.858588,0.00027301,2]
[336984499,1725274438719,-672.9,0.00027397,2]
[336984500,1725274438747,-688.19,0.00027397,2]
[336984501,1725274438774,-602.454458,0.00027397,7]
[336984502,1725274438800,-602.454458,0.00027397,7]
[336984503,1725274438826,-602.454458,0.00027397,7]
[336984504,1725274438854,-602.454458,0.00027397,7]
[336984505,1725274438880,-602.454458,0.00027397,7]
[336984506,1725274438909,-602.454458,0.00027397,7]
[336984507,1725274438938,-602.454458,0.00027397,7]
[336984508,1725274438970,-602.454458,0.00027397,7]
[336984509,1725274438997,-602.454458,0.00027397,7]
[336984510,1725274439149,-602.454458,0.00027397,7]
[336984511,1725274439176,-602.454458,0.00027397,7]
[336984512,1725274439202,-602.454458,0.00027397,7]
[336984513,1725274439227,-602.454458,0.00027397,7]
[336984514,1725274439253,-602.454458,0.00027397,7]
[336984515,1725274439278,-602.454458,0.00027397,7]
[336984516,1725274439303,-602.454458,0.00027397,7]
[336984517,1725274439328,-602.454458,0.00027397,7]
[336984518,1725274439354,-602.454458,0.00027397,7]
[336984519,1725274439380,-602.454458,0.00027397,7]
[336984520,1725274439406,-602.454465,0.00027397,7]
[336984521,1725274439434,-672.9,0.00027671,15]
[336984522,1725274439459,-688.19,0.00027671,15]
[336984523,1725274439487,-672.9,0.00027945,15]
[336984524,1725274439514,-688.19,0.00027945,15]
[336984525,1725274439542,-672.9,0.00028219,15]
[336984526,1725274439572,-688.19,0.00028219,15]
[336984527,1725274439600,-672.9,0.00028493,15]
[336984528,1725274439627,-688.19,0.00028493,15]
[336984529,1725274439656,-672.9,0.00028767,15]
[336984530,1725274439686,-688.19,0.00028767,15]
[336984531,1725274439717,-672.9,0.00029041,15]
[336984532,1725274439745,-688.19,0.00029041,15]
[336984533,1725274439772,-151.0,0.00029121,7]
[336984534,1725274439799,-672.9,0.00029315,15]
[336984535,1725274439826,-688.19,0.00029315,15]
[336984536,1725274439855,-151.0,0.00029589,7]
[336984537,1725274439883,-672.9,0.00029589,15]
[336984538,1725274439911,-688.19,0.00029589,15]
[336984539,1725274439936,-151.0,0.00029834,5]
[336984540,1725274439963,-672.9,0.00029863,15]
[336984541,1725274439989,-688.19,0.00029863,15]
[336984542,1725274440028,500.0,0.00024657,2]
[336984543,1725274440059,500.0,0.00024931,2]
[336984544,1725274440091,603.45327696,0.00025205,2]
[336984558,1725274690881,158.895588,0.00014247,2]
[336984560,1725274702383,660494.466133,0.00025,120]
[336984561,1725274716744,-167.151254,0.00023836,2]
[336984562,1725274716774,-500.0,0.00024657,2]
[336984563,1725274716801,-158.186282,0.00024657,2]
[336984564,1725274716831,-500.0,0.00024657,2]
[336984565,1725274716861,-378.12025392,0.00024657,2]
[336984566,1725274717022,-500.0,0.00024657,2]
[336984567,1725274717049,-500.0,0.00024657,2]
[336984568,1725274717076,-500.0,0.00024657,2]
[336984569,1725274717101,-347.3069403,0.00024657,2]
[336984570,1725274717130,-500.0,0.00024657,2]
[336984571,1725274717155,-500.0,0.00024657,2]
[336984572,1725274717181,-500.0,0.00024657,2]
[336984573,1725274717207,-500.0,0.00024657,2]
[336984574,1725274717232,-500.0,0.00024657,2]
[336984575,1725274717258,-158.45324469,0.00024657,2]
[336984576,1725274717283,-500.0,0.00024657,2]
[336984577,1725274717309,-500.0,0.00024657,2]
[336984578,1725274717337,-500.0,0.00024657,2]
[336984579,1725274717362,-500.0,0.00024657,2]
[336984580,1725274717388,-547.19,0.00024657,2]
[336984581,1725274717414,-500.0,0.00024657,2]
[336984582,1725274717440,-523.2,0.00024657,2]
[336984583,1725274717468,-500.0,0.00024657,2]
[336984584,1725274717493,-259.10014053,0.00024657,2]
[336984585,1725274717519,-500.0,0.00024931,2]
[336984586,1725274717545,-500.0,0.00024931,2]
[336984587,1725274717572,-500.0,0.00024931,2]
[336984588,1725274717599,-500.0,0.00024931,2]
[336984589,1725274717626,-500.0,0.00024931,2]
[336984590,1725274717652,-500.0,0.00024931,2]
[336984591,1725274717678,-45561.54,0.0002499,3]
[336984592,1725274717704,-500.0,0.00024999,2]
[336984593,1725274717729,-500.0,0.00024999,2]
[336984594,1725274717757,-500.0,0.00024999,2]
[336984595,1725274717783,-500.0,0.00024999,2]
[336984596,1725274717812,-805.99124111,0.00024999,2]
[336984597,1725274717841,-375.57932489,0.00024999,2]
[336984598,1725274717867,-500.0,0.00024999,2]
[336984599,1725274717894,-500.0,0.00024999,2]
[336984600,1725274717921,-441.16281248,0.00024999,2]
[336984601,1725274717952,-805.99124111,0.00024999,2]
[336984602,1725274717979,-500.0,0.00024999,2]
[336984603,1725274718004,-500.0,0.00024999,2]
[336984604,1725274718030,-500.0,0.00024999,2]
[336984605,1725274718054,-500.0,0.00024999,2]
[336984606,1725274718081,-805.99124111,0.00024999,2]
[336984607,1725274718107,-436.20133548,0.00024999,2]
[336984608,1725274718135,-805.99124111,0.00024999,2]
[336984609,1725274718161,-805.99124111,0.00024999,2]
[336984610,1725274718187,-500.0,0.00024999,2]
[336984611,1725274718213,-805.99124111,0.00024999,2]
[336984612,1725274718240,-805.99124111,0.00024999,2]
[336984613,1725274718268,-805.99124111,0.00024999,2]
[336984614,1725274718293,-805.99124111,0.00024999,2]
[336984615,1725274718319,-805.99124111,0.00024999,2]
[336984616,1725274718346,-805.99124111,0.00024999,2]
[336984617,1725274718374,-805.99124111,0.00024999,2]
[336984618,1725274718404,-805.99124111,0.00024999,2]
[336984619,1725274718435,-805.99124111,0.00024999,2]
[336984620,1725274718465,-805.99124111,0.00024999,2]
[336984621,1725274718491,-805.99124111,0.00024999,2]
[336984622,1725274718518,-805.99124111,0.00024999,2]
[336984623,1725274718545,-805.99124111,0.00024999,2]
[336984624,1725274718572,-805.99124111,0.00024999,2]
[336984625,1725274718603,-805.99124111,0.00024999,2]
[336984626,1725274718632,-805.99124111,0.00024999,2]
[336984627,1725274718659,-805.99124111,0.00024999,2]
[336984628,1725274718687,-805.99124111,0.00024999,2]
[336984629,1725274718715,-805.99124111,0.00024999,2]
[336984630,1725274718744,-805.99124111,0.00024999,2]
[336984631,1725274718775,-805.99124111,0.00024999,2]
[336984632,1725274718806,-805.99124111,0.00024999,2]
[336984633,1725274718838,-805.99124111,0.00024999,2]
[336984634,1725274718865,-805.99124111,0.00024999,2]
[336984635,1725274718891,-805.99124111,0.00024999,2]
[336984636,1725274718918,-805.99124111,0.00024999,2]
[336984637,1725274718943,-805.99124111,0.00024999,2]
[336984638,1725274718970,-805.99124111,0.00024999,2]
[336984639,1725274718996,-805.99124111,0.00024999,2]
[336984640,1725274719022,-805.99124111,0.00024999,2]
[336984641,1725274719048,-805.99124111,0.00024999,2]
[336984642,1725274719075,-805.99124111,0.00024999,2]
[336984643,1725274719102,-805.99124111,0.00024999,2]
[336984644,1725274719129,-805.99124111,0.00024999,2]
[336984645,1725274719160,-805.99124111,0.00024999,2]
[336984646,1725274719187,-805.99124111,0.00024999,2]
[336984647,1725274719214,-805.99124111,0.00024999,2]
[336984648,1725274719243,-805.99124111,0.00024999,2]
[336984649,1725274719273,-805.99124111,0.00024999,2]
[336984650,1725274719300,-338505.533867,0.00025,120]
[336984651,1725274719328,-348.91,0.00025205,2]
[336984652,1725274719361,-500.0,0.00025205,2]
[336984653,1725274719391,-500.0,0.00025205,2]
[336984654,1725274719417,-500.0,0.00025479,2]
[336984655,1725274719445,-500.0,0.00025479,2]
[336984656,1725274719471,-500.0,0.00025753,2]
[336984657,1725274719498,-500.0,0.00025753,2]
[336984658,1725274719525,-500.0,0.00026027,2]
[336984659,1725274719552,-500.0,0.00026027,2]
[336984660,1725274719579,-500.0,0.00026301,2]
[336984661,1725274719608,-403.66400161,0.00026301,2]
[336984662,1725274719636,-500.0,0.00026575,2]
[336984663,1725274719666,-500.0,0.00026849,2]
[336984664,1725274719696,-500.0,0.00027123,2]
[336984665,1725274719728,-500.0,0.00027397,2]
[336984666,1725274719764,-500.0,0.00027671,15]
[336984667,1725274719794,-500.0,0.00027945,15]
[336984668,1725274719826,-500.0,0.00028219,15]
[336984669,1725274719955,-269.66472597,0.00028493,15]
[336984670,1725274720013,805.99124111,0.00024999,2]
[336984671,1725274720056,37967.95,0.0002499,3]
[336984672,1725274729938,500.0,0.00024999,2]
[336984673,1725274729979,500.0,0.00024999,2]
[336984674,1725274730050,500.0,0.00024999,2]
[336984675,1725274730081,500.0,0.00024999,2]
[336984676,1725274730124,500.0,0.00024999,2]
[336984677,1725274730173,500.0,0.00024999,2]
[336984678,1725274730214,500.0,0.00024999,2]
[336984679,1725274730267,500.0,0.00024999,2]
[336984680,1725274730362,500.0,0.00024999,2]
[336984681,1725274730421,500.0,0.00024999,2]
[336984682,1725274730473,500.0,0.00024999,2]
[336984683,1725274730524,500.0,0.00024999,2]
[336984684,1725274730581,500.0,0.00024999,2]
[336984685,1725274730680,500.0,0.00024999,2]
[336984686,1725274730727,500.0,0.00024999,2]
[336984687,1725274730777,318.82161596,0.00024999,2]
[336984688,1725274730831,500.0,0.00024999,2]
[336984689,1725274730884,500.0,0.00024999,2]
[336984690,1725274730932,500.0,0.00024999,2]
[336984691,1725274730983,500.0,0.00024999,2]
[336984692,1725274731024,500.0,0.00024999,2]
[336984693,1725274731067,500.0,0.00024999,2]
[336984694,1725274731115,500.0,0.00024999,2]
[336984695,1725274731155,500.0,0.00024999,2]
[336984696,1725274731197,500.0,0.00024999,2]
[336984697,1725274731244,500.0,0.00024999,2]
[336984698,1725274731301,500.0,0.00024999,2]
[336984699,1725274731352,500.0,0.00024999,2]
[336984700,1725274731406,500.0,0.00024999,2]
[336984701,1725274731457,500.0,0.00024999,2]
[336984702,1725274731505,500.0,0.00024999,2]
[336984703,1725274731551,500.0,0.00024999,2]
[336984704,1725274731634,500.0,0.00024999,2]
[336984705,1725274731715,500.0,0.00024999,2]
[336984706,1725274731824,500.0,0.00024999,2]
[336984707,1725274731933,500.0,0.00024999,2]
[336984708,1725274731979,500.0,0.00024999,2]
[336984709,1725274732025,500.0,0.00024999,2]
[336984710,1725274732071,500.0,0.00024999,2]
[336984711,1725274732124,500.0,0.00024999,2]
[336984712,1725274732302,500.0,0.00024999,2]